fUSD/lending_fUSD_20260307
["ID","MTS","AMOUNT","RATE_DAILY","PERIOD"]
[407955522,1772926239356,-783.80303392,0.00016686,2]
[407955523,1772926239367,-166.5,0.00016712,2]
[407955524,1772926239377,-2351.0,0.00016853,2]
[407955525,1772926239388,-166.66,0.00016901,2]
[407955526,1772926239398,-504.0,0.00017,2]
[407955527,1772926239407,-168.11,0.00017223,2]
[407955528,1772926239417,-2000.0,0.00017526,2]
[407955529,1772926239426,-736.0,0.00017714,2]
[407955530,1772926239435,-300.0,0.00017738,2]
[407955531,1772926239445,-800.0,0.00017808,2]
[407955532,1772926239454,-250.0,0.00018206,2]
[407955533,1772926239463,-161.0,0.000184,2]
[407955534,1772926239473,-26519.64151612,0.00018438,2]
[407955535,1772926239482,-39729.83796681,0.00018483,2]
[407955536,1772926239492,-1826.0,0.00018538,2]
[407955537,1772926239501,-376.88153769,0.00018904,2]
[407955538,1772926239510,-168.11,0.00018945,2]
[407955539,1772926239520,-7363.41205091,0.00019,2]
[407955540,1772926239530,-5000.0,0.00019,2]
[407955541,1772926239540,-160.0,0.0001904,2]
[407955542,1772926239549,-10000.0,0.00019099,2]
[407955543,1772926239690,-1252.0,0.0001911,2]
[407955544,1772926239700,-1244.87,0.00019178,30]
[407955545,1772926239709,-168.0,0.00019441,2]
[407955546,1772926239718,-2000.0,0.00019474,2]
[407955547,1772926239728,-168.0,0.0001974,2]
[407955548,1772926239737,-4654.60097481,0.00019758,2]
[407955549,1772926239748,-160.01,0.0001979,2]
[407955550,1772926239758,-150.0,0.000198,14]
[407955551,1772926239768,-168.0,0.00019801,2]
[407955552,1772926239779,-168.0,0.00019888,2]
[407955553,1772926239788,-212.11,0.0002,7]
[407955554,1772926239798,-160.01,0.0002006,2]
[407955555,1772926239808,-9999.99,0.00020145,2]
[407955556,1772926239818,-150.99,0.00020145,2]
[407955557,1772926239829,-9999.99,0.00020145,2]
[407955558,1772926239838,-150.99,0.00020145,2]
[407955559,1772926239848,-9999.99,0.00020145,2]
[407955560,1772926239857,-2110.46,0.00020145,2]
[407955561,1772926239866,-609.85,0.00020145,2]
[407955562,1772926239875,-999.99,0.00020145,2]
[407955563,1772926239886,-1206.61,0.00020145,2]
[407955564,1772926239896,-9999.99,0.00020145,2]
[407955565,1772926239906,-160.01,0.0002033,2]
[407955566,1772926239916,-168.0,0.00020424,2]
[407955567,1772926239925,-240.0,0.0002045,5]
[407955568,1772926239935,-160.0,0.00020454,2]
[407955569,1772926239945,-172.78723296,0.00020454,2]
[407955570,1772926239955,-168.0,0.00020516,2]
[407955571,1772926239965,-160.01,0.000206,2]
[407955572,1772926239976,-837.17636583,0.00020625,2]
[407955573,1772926239985,-1338.0,0.00020633,2]
[407955574,1772926239994,-168.11,0.00020668,2]
[407955575,1772926240003,-168.0,0.00020703,2]
[407955576,1772926240013,-504.0,0.00020706,5]
[407955577,1772926240022,-168.0,0.00020804,2]
[407955578,1772926240031,-180.522703,0.00020805,7]
[407955579,1772926240041,-160.01,0.0002087,2]
[407955580,1772926240050,-168.0,0.00020872,2]
[407955581,1772926240059,-168.0,0.00021005,2]
[407955582,1772926240068,-168.0,0.00021046,2]
[407955583,1772926240078,-168.0,0.00021121,2]
[407955584,1772926240087,-160.01,0.0002114,2]
[407955585,1772926240096,-168.0,0.00021266,2]
[407955586,1772926240106,-160.01,0.0002141,2]
[407955587,1772926240115,-2000.0,0.00021421,2]
[407955588,1772926240124,-160.01,0.0002168,2]
[407955589,1772926240133,-26519.64151612,0.0002191,2]
[407955590,1772926240143,-5000.0,0.00021918,2]
[407955591,1772926240151,-160.01,0.0002195,2]
[407955592,1772926240161,-1244.87,0.00022114,30]
[407955593,1772926240170,-2726.08,0.00022136,2]
[407955594,1772926240179,-160.01,0.0002222,2]
[407955595,1772926240189,-39729.83796681,0.00022296,2]
[407955596,1772926240198,-160.01,0.0002249,2]
[407955597,1772926240207,-160.01,0.0002276,2]
[407955599,1772926240216,-160.01,0.0002303,2]
[407955600,1772926240229,-626.44,0.00023188,2]
[407955601,1772926240239,-215.59,0.00023207,2]
[407955603,1772926240249,-855.08,0.00023207,2]
[407955605,1772926240258,-300.0,0.00023278,4]
[407955606,1772926240267,-160.01,0.000233,2]
[407955607,1772926240277,-2000.0,0.00023369,2]
[407955608,1772926240286,-160.01,0.0002357,2]
[407955609,1772926240295,-480.98,0.00023829,2]
[407955610,1772926240304,-160.01,0.0002384,2]
[407955611,1772926240313,-480.98,0.00023948,2]
[407955613,1772926240322,-480.98,0.00024067,2]
[407955615,1772926240331,-160.01,0.0002411,2]
[407955617,1772926240340,-480.98,0.00024187,2]
[407955619,1772926240349,-480.98,0.00024306,2]
[407955620,1772926240359,-160.01,0.0002438,2]
[407955621,1772926240369,-504.0,0.00024412,8]
[407955622,1772926240378,-480.98,0.00024425,2]
[407955623,1772926240387,-480.98,0.00024544,2]
[407955624,1772926240397,-160.01,0.0002465,2]
[407955625,1772926240406,-1000.0,0.00024658,2]
[407955626,1772926240415,-150.0,0.00024658,2]
[407955627,1772926240425,-480.98,0.00024663,2]
[407955628,1772926240434,-4654.60097481,0.00024747,2]
[407955629,1772926240443,-480.98,0.00024782,2]
[407955630,1772926240453,-500.0,0.00024849,2]
[407955631,1772926240462,-445386.249014,0.000249,3]
[407955632,1772926240472,-480.98,0.00024901,2]
[407955633,1772926240483,-160.01,0.0002492,2]
[407955634,1772926240493,-481.04943592,0.00025021,2]
[407955635,1772926240504,-1244.87,0.00025049,30]
[407955636,1772926240514,-160.01,0.0002519,2]
[407955637,1772926240524,-26519.64151612,0.00025382,2]
[407955638,1772926240533,-160.01,0.0002546,2]
[407955639,1772926240543,-160.01,0.0002573,2]
[407955640,1772926240552,-1279.0,0.00025877,2]
[407955641,1772926240561,-1212.0,0.00025877,2]
[407955642,1772926240571,-922.0,0.00025877,2]
[407955643,1772926240580,-5991.0,0.00025877,2]
[407955644,1772926240589,-2460.0,0.00025877,2]
[407955645,1772926240598,-150.0,0.0002589,2]
[407955646,1772926240607,-160.23,0.00026,2]
[407955647,1772926240617,-39729.83796681,0.0002611,2]
[407955648,1772926240626,-1281.37665699,0.00026137,30]
[407955649,1772926240636,-1281.37665699,0.00026219,30]
[407955650,1772926240645,-1281.37665699,0.00026329,30]
[407955651,1772926240655,-1281.37665699,0.00026438,30]
[407955652,1772926240664,-837.17636583,0.0002648,2]
[407955653,1772926240674,-1281.37665699,0.00026548,30]
[407955654,1772926240683,-1281.37665699,0.00026658,30]
[407955655,1772926240692,-1281.37665699,0.00026767,30]
[407955656,1772926240702,-636.33,0.000268,14]
[407955657,1772926240712,-1281.37665699,0.00026849,30]
[407955658,1772926240721,-1281.37665699,0.00026959,30]
[407955659,1772926240730,-1281.37665699,0.00027068,30]
[407955660,1772926240739,-1281.37665699,0.00027178,30]
[407955661,1772926240749,-262.0,0.00027184,10]
[407955662,1772926240759,-538.0,0.00027184,10]
[407955663,1772926240768,-150.0,0.00027185,2]
[407955664,1772926240778,-1281.37665699,0.00027288,30]
[407955665,1772926240788,-155.55756851,0.00027369,2]
[407955666,1772926240797,-150.435585,0.0002774,30]
[407955667,1772926240806,-1244.87,0.00027984,30]
[407955668,1772926240816,-504.0,0.00028118,12]
[407955669,1772926240826,-157.1,0.000282,7]
[407955670,1772926240835,-560.36,0.000282,7]
[407955671,1772926240844,-166.5,0.00028493,2]
[407955672,1772926240853,-238.12,0.00028512,2]
[407955673,1772926240862,-150.0,0.00028544,2]
[407955674,1772926240871,-26519.64151612,0.00028855,2]
[407955675,1772926240881,-4654.60097481,0.00029735,2]
[407955676,1772926240890,-39729.83796681,0.00029923,2]
[407955677,1772926240899,-150.0,0.00029971,2]
[407955678,1772926240908,-1244.87,0.0003092,30]
[407955679,1772926240917,-636.0,0.00031096,2]
[407955680,1772926240926,-300.0,0.0003134,19]
[407955681,1772926240935,-247.51234164,0.00031442,14]
[407955682,1772926240944,-150.0,0.0003147,2]
[407955683,1772926240953,-247.52,0.00031471,14]
[407955684,1772926240963,-504.0,0.00031824,15]
[407955685,1772926240972,-533.68146344,0.00032229,2]
[407955686,1772926240980,-26519.64151612,0.00032327,2]
[407955687,1772926240990,-837.17636583,0.00032335,2]
[407955688,1772926240999,-150.0,0.00033043,2]
[407955689,1772926241008,-177.40025043,0.00033726,2]
[407955690,1772926241017,-39729.83796681,0.00033736,2]
[407955691,1772926241026,-1244.87,0.00033855,30]
[407955692,1772926241036,-530.27,0.000339,30]
[407955693,1772926241047,-150.0,0.00034696,2]
[407955694,1772926241056,-4654.60097481,0.00034723,2]
[407955695,1772926241066,-1500.0,0.00034795,2]
[407955696,1772926241075,-626.44,0.00034868,2]
[407955697,1772926241084,-504.0,0.00035529,19]
[407955698,1772926241093,-166.77021959,0.00035579,7]
[407955699,1772926241102,-165.28165424,0.00035581,7]
[407955700,1772926241111,-167.66070663,0.00035588,7]
[407955701,1772926241120,-168.19358389,0.00035602,7]
[407955702,1772926241129,-165.28165424,0.00035602,7]
[407955703,1772926241139,-166.77021959,0.00035608,7]
[407955704,1772926241148,-195.35973643,0.0003561,7]
[407955705,1772926241158,-163.726,0.00035611,30]
[407955706,1772926241167,-168.19358389,0.00035615,7]
[407955707,1772926241176,-160.77370798,0.00035616,2]
[407955708,1772926241185,-167.66070663,0.0003562,7]
[407955709,1772926241194,-26519.64151612,0.00035799,2]
[407955710,1772926241204,-150.0,0.0003643,2]
[407955711,1772926241213,-1244.87,0.00036791,30]
[407955712,1772926241225,-500.0,0.00037236,39]
[407955713,1772926241236,-560.36,0.000374,14]
[407955714,1772926241246,-39729.83796681,0.00037549,2]
[407955715,1772926241255,-170.34042304,0.00037753,120]
[407955716,1772926241266,-3500.0,0.000379,13]
[407955717,1772926241275,-172.47,0.00038034,30]
[407955718,1772926241284,-684.06,0.00038034,30]
[407955719,1772926241293,-837.17636583,0.0003819,2]
[407955720,1772926241303,-150.0,0.00038252,2]
[407955721,1772926241312,-1999.0,0.00038356,120]
[407955722,1772926241322,-3401.157,0.00038502,51]
[407955723,1772926241331,-166.458,0.00038502,51]
[407955724,1772926241340,-1999.0,0.00038904,120]
[407955725,1772926241349,-157.1,0.00039,14]
[407955726,1772926241358,-504.0,0.00039235,22]
[407955727,1772926241367,-26519.64151612,0.00039271,2]
[407955728,1772926241376,-1999.0,0.00039452,120]
[407955729,1772926241385,-238.12,0.00039473,2]
[407955730,1772926241394,-3520.0,0.00039648,5]
[407955731,1772926241404,-3228.0,0.00039648,5]
[407955732,1772926241413,-4654.60097481,0.00039711,2]
[407955733,1772926241422,-1244.87,0.00039726,30]
[407955734,1772926241431,-1999.0,0.0004,120]
[407955735,1772926241441,-150.0,0.00040165,2]
[407955736,1772926241450,-1999.0,0.00040547,120]
[407955737,1772926241459,-500.0,0.00041095,2]
[407955738,1772926241468,-500.0,0.00041095,2]
[407955739,1772926241477,-500.0,0.00041095,2]
[407955740,1772926241487,-500.0,0.00041095,2]
[407955741,1772926241496,-500.0,0.00041095,2]
[407955742,1772926241505,-500.0,0.00041095,2]
[407955743,1772926241514,-500.0,0.00041095,2]
[407955744,1772926241523,-500.0,0.00041095,2]
[407955745,1772926241532,-500.0,0.00041095,2]
[407955746,1772926241541,-500.0,0.00041095,2]
[407955747,1772926241551,-500.0,0.00041095,2]
[407955748,1772926241560,-500.0,0.00041095,2]
[407955749,1772926241570,-500.0,0.00041095,2]
[407955750,1772926241579,-500.0,0.00041095,2]
[407955751,1772926241588,-500.0,0.00041095,2]
[407955752,1772926241597,-500.0,0.00041095,2]
[407955753,1772926241607,-500.0,0.00041095,2]
[407955754,1772926241616,-239.09127896,0.00041095,2]
[407955755,1772926241625,-300.0,0.00041095,2]
[407955756,1772926241635,-300.0,0.00041095,2]
[407955757,1772926241644,-300.0,0.00041095,2]
[407955758,1772926241653,-300.0,0.00041095,2]
[407955759,1772926241663,-300.0,0.00041095,2]
[407955760,1772926241672,-300.0,0.00041095,2]
[407955761,1772926241681,-300.0,0.00041095,2]
[407955762,1772926241691,-300.0,0.00041095,2]
[407955763,1772926241699,-300.0,0.00041095,2]
[407955764,1772926241708,-300.0,0.00041095,2]
[407955765,1772926241717,-300.0,0.00041095,2]
[407955766,1772926241726,-300.0,0.00041095,2]
[407955767,1772926241735,-300.38319783,0.00041095,2]
[407955768,1772926241743,-1999.0,0.00041095,120]
[407955769,1772926241753,-493.89901665,0.00041096,14]
[407955770,1772926241762,-800.0,0.00041096,14]
[407955771,1772926241771,-800.0,0.00041096,14]
[407955772,1772926241781,-800.0,0.00041096,14]
[407955773,1772926241792,-800.0,0.00041096,14]
[407955774,1772926241803,-800.0,0.00041096,14]
[407955775,1772926241814,-800.0,0.00041096,14]
[407955776,1772926241824,-800.0,0.00041096,14]
[407955777,1772926241835,-800.0,0.00041096,14]
[407955778,1772926241846,-50000.0,0.00041096,60]
[407955779,1772926241858,-27608.46,0.00041096,60]
[407955780,1772926241868,-39729.83796681,0.00041363,15]
[407955781,1772926241877,-500.0,0.00041397,2]
[407955782,1772926241886,-1999.0,0.00041643,120]
[407955783,1772926241895,-560.36,0.000417,14]
[407955784,1772926241904,-150.0,0.00042173,120]
[407955785,1772926241913,-1999.0,0.00042191,120]
[407955786,1772926241923,-500.0,0.00042191,120]
[407955787,1772926241934,-500.0,0.00042191,120]
[407955788,1772926241944,-500.0,0.00042191,120]
[407955789,1772926241954,-500.0,0.00042191,120]
[407955790,1772926241965,-500.0,0.00042191,120]
[407955791,1772926241974,-500.0,0.00042191,120]
[407955792,1772926241983,-500.0,0.00042191,120]
[407955793,1772926241992,-500.0,0.00042191,120]
[407955794,1772926242002,-500.0,0.00042191,120]
[407955795,1772926242012,-500.0,0.00042191,120]
[407955796,1772926242022,-500.0,0.00042191,120]
[407955797,1772926242032,-500.0,0.00042191,120]
[407955798,1772926242042,-500.0,0.00042191,120]
[407955799,1772926242051,-500.0,0.00042191,120]
[407955800,1772926242059,-500.0,0.00042191,120]
[407955801,1772926242100,-500.0,0.00042191,120]
[407955802,1772926242109,-500.0,0.00042191,120]
[407955803,1772926242119,-500.0,0.00042191,120]
[407955804,1772926242127,-500.0,0.00042191,120]
[407955805,1772926242136,-500.0,0.00042191,120]
[407955806,1772926242145,-500.0,0.00042191,120]
[407955807,1772926242154,-500.0,0.00042191,120]
[407955808,1772926242164,-500.0,0.00042191,120]
[407955809,1772926242173,-500.0,0.00042191,120]
[407955810,1772926242183,-500.0,0.00042191,120]
[407955811,1772926242193,-500.0,0.00042191,120]
[407955812,1772926242202,-500.0,0.00042191,120]
[407955813,1772926242211,-500.0,0.00042191,120]
[407955814,1772926242224,-500.0,0.00042191,120]
[407955815,1772926242234,-500.0,0.00042191,120]
[407955816,1772926242243,-500.0,0.00042191,120]
[407955817,1772926242252,-500.0,0.00042191,120]
[407955818,1772926242261,-500.0,0.00042191,120]
[407955819,1772926242270,-500.0,0.00042191,120]
[407955820,1772926242279,-500.0,0.00042191,120]
[407955821,1772926242288,-500.0,0.00042191,120]
[407955822,1772926242296,-500.0,0.00042191,120]
[407955823,1772926242305,-500.0,0.00042191,120]
[407955824,1772926242314,-500.0,0.00042191,120]
[407955825,1772926242323,-500.0,0.00042191,120]
[407955826,1772926242332,-500.0,0.00042191,120]
[407955827,1772926242341,-500.0,0.00042191,120]
[407955828,1772926242350,-500.0,0.00042191,120]
[407955829,1772926242358,-500.0,0.00042191,120]
[407955830,1772926242367,-500.0,0.00042191,120]
[407955831,1772926242377,-500.0,0.00042191,120]
[407955832,1772926242387,-500.0,0.00042191,120]
[407955833,1772926242397,-500.0,0.00042191,120]
[407955834,1772926242406,-500.0,0.00042191,120]
[407955835,1772926242417,-500.0,0.00042191,120]
[407955836,1772926242426,-500.0,0.00042191,120]
[407955837,1772926242436,-500.0,0.00042191,120]
[407955838,1772926242446,-500.0,0.00042191,120]
[407955839,1772926242455,-500.0,0.00042191,120]
[407955840,1772926242464,-500.0,0.00042191,120]
[407955841,1772926242473,-500.0,0.00042191,120]
[407955842,1772926242483,-500.0,0.00042191,120]
[407955843,1772926242491,-500.0,0.00042191,120]
[407955844,1772926242501,-500.0,0.00042191,120]
[407955845,1772926242510,-500.0,0.00042191,120]
[407955846,1772926242519,-500.0,0.00042191,120]
[407955847,1772926242528,-500.0,0.00042191,120]
[407955848,1772926242537,-500.0,0.00042191,120]
[407955849,1772926242546,-500.0,0.00042191,120]
[407955850,1772926242555,-500.0,0.00042191,120]
[407955851,1772926242564,-500.0,0.00042191,120]
[407955852,1772926242574,-500.0,0.00042191,120]
[407955853,1772926242583,-500.0,0.00042191,120]
[407955854,1772926242593,-500.0,0.00042191,120]
[407955855,1772926242603,-500.0,0.00042191,120]
[407955856,1772926242613,-500.0,0.00042191,120]
[407955857,1772926242623,-500.0,0.00042191,120]
[407955858,1772926242633,-500.0,0.00042191,120]
[407955859,1772926242643,-500.0,0.00042191,120]
[407955860,1772926242652,-500.0,0.00042191,120]
[407955861,1772926242661,-500.0,0.00042191,120]
[407955862,1772926242670,-500.0,0.00042191,120]
[407955863,1772926242679,-500.0,0.00042191,120]
[407955864,1772926242689,-500.0,0.00042191,120]
[407955865,1772926242698,-500.0,0.00042191,120]
[407955866,1772926242707,-500.0,0.00042191,120]
[407955867,1772926242716,-500.0,0.00042191,120]
[407955868,1772926242725,-500.0,0.00042191,120]
[407955869,1772926242734,-500.0,0.00042191,120]
[407955870,1772926242743,-500.0,0.00042191,120]
[407955871,1772926242752,-500.0,0.00042191,120]
[407955872,1772926242762,-500.0,0.00042191,120]
[407955873,1772926242772,-500.0,0.00042191,120]
[407955874,1772926242782,-500.0,0.00042191,120]
[407955875,1772926242791,-500.0,0.00042191,120]
[407955876,1772926242800,-500.0,0.00042191,120]
[407955877,1772926242809,-500.0,0.00042191,120]
[407955878,1772926242819,-500.0,0.00042191,120]
[407955879,1772926242828,-500.0,0.00042191,120]
[407955880,1772926242837,-500.0,0.00042191,120]
[407955881,1772926242846,-500.0,0.00042191,120]
[407955883,1772926242855,-500.0,0.00042191,120]
[407955884,1772926242864,-500.0,0.00042191,120]
[407955886,1772926242873,-500.0,0.00042191,120]
[407955888,1772926242884,-500.0,0.00042191,120]
[407955890,1772926242895,-500.0,0.00042191,120]
[407955891,1772926242904,-500.0,0.00042191,120]
[407955892,1772926242914,-500.0,0.00042191,120]
[407955893,1772926242924,-500.0,0.00042191,120]
[407955895,1772926242934,-500.0,0.00042191,120]
[407955896,1772926242945,-967.0,0.00042191,120]
[407955897,1772926242954,-200.0,0.00042319,120]
[407955898,1772926242964,-300.0,0.0004243,2]
[407955899,1772926242974,-300.0,0.0004243,2]
[407955900,1772926242984,-300.0,0.0004243,2]
[407955901,1772926242994,-415.85804326,0.0004243,2]
[407955902,1772926243004,-300.0,0.0004243,2]
[407955903,1772926243014,-300.0,0.0004243,2]
[407955904,1772926243023,-300.0,0.0004243,2]
[407955905,1772926243032,-300.0,0.0004243,2]
[407955906,1772926243041,-300.0,0.0004243,2]
[407955907,1772926243050,-300.0,0.0004243,2]
[407955908,1772926243060,-300.0,0.0004243,2]
[407955909,1772926243069,-300.0,0.0004243,2]
[407955910,1772926243079,-300.0,0.0004243,2]
[407955911,1772926243089,-300.0,0.0004243,2]
[407955912,1772926243098,-300.0,0.0004243,2]
[407955913,1772926243108,-302.12694182,0.0004243,2]
[407955914,1772926243117,-300.0,0.0004243,2]
[407955915,1772926243127,-300.0,0.0004243,2]
[407955916,1772926243138,-300.0,0.0004243,2]
[407955917,1772926243147,-519.87184079,0.0004243,2]
[407955918,1772926243157,-306.98881472,0.0004243,2]
[407955919,1772926243167,-300.0,0.0004243,2]
[407955920,1772926243177,-300.0,0.0004243,2]
[407955921,1772926243188,-300.0,0.0004243,2]
[407955922,1772926243198,-1084.72444425,0.0004243,2]
[407955923,1772926243208,-300.0,0.0004243,2]
[407955924,1772926243218,-300.0,0.0004243,2]
[407955925,1772926243231,-300.0,0.0004243,2]
[407955926,1772926243241,-300.0,0.0004243,2]
[407955927,1772926243251,-300.0,0.0004243,2]
[407955928,1772926243262,-1048.99623049,0.0004243,2]
[407955929,1772926243272,-306.76170033,0.0004243,2]
[407955930,1772926243282,-856.54643746,0.0004243,2]
[407955931,1772926243291,-494.20103728,0.0004243,2]
[407955932,1772926243303,-300.0,0.0004243,2]
[407955933,1772926243313,-442.39800754,0.0004243,2]
[407955934,1772926243322,-509.70389573,0.0004243,2]
[407955935,1772926243331,-308.03022305,0.0004243,2]
[407955936,1772926243339,-300.0,0.0004243,2]
[407955937,1772926243349,-300.0,0.0004243,2]
[407955938,1772926243358,-459.60835984,0.0004243,2]
[407955939,1772926243368,-300.0,0.0004243,2]
[407955940,1772926243377,-300.00000001,0.0004243,2]
[407955941,1772926243387,-300.0,0.0004243,2]
[407955942,1772926243396,-372.31395782,0.0004243,2]
[407955943,1772926243405,-300.0,0.0004243,2]
[407955944,1772926243414,-300.0,0.0004243,2]
[407955945,1772926243423,-300.0,0.0004243,2]
[407955946,1772926243432,-500.0,0.00042438,120]
[407955947,1772926243441,-150.0,0.00042546,120]
[407955948,1772926243450,-513.04,0.00042546,120]
[407955949,1772926243460,-500.0,0.00042575,120]
[407955950,1772926243469,-1244.87,0.00042661,120]
[407955951,1772926243479,-242.43,0.000427,120]
[407955953,1772926243488,-531.24,0.000427,120]
[407955955,1772926243497,-500.0,0.00042712,120]
[407955956,1772926243506,-1999.0,0.00042739,120]
[407955957,1772926243516,-4000.0,0.0004274,14]
[407955958,1772926243525,-26519.64151612,0.00042744,15]
[407955959,1772926243534,-578.74580108,0.00042849,120]
[407955960,1772926243544,-504.0,0.00042941,25]
[407955961,1772926243553,-300.0,0.00043068,120]
[407955962,1772926243562,-300.0,0.00043068,120]
[407955963,1772926243571,-300.0,0.00043068,120]
[407955964,1772926243580,-300.0,0.00043068,120]
[407955965,1772926243590,-300.0,0.00043068,120]
[407955966,1772926243599,-314.16,0.00043068,120]
[407955967,1772926243608,-157.1,0.000431,14]
[407955968,1772926243617,-1999.0,0.00043287,120]
[407955969,1772926243626,-500.0,0.00043315,2]
[407955970,1772926243635,-1000.0,0.00043678,21]
[407955971,1772926243644,-1059.33771411,0.00043735,2]
[407955972,1772926243653,-5000.0,0.000438,20]
[407955973,1772926243662,-512.0,0.00043835,120]
[407955974,1772926243671,-500.0,0.00043835,120]
[407955975,1772926243681,-500.0,0.00043835,120]
[407955976,1772926243690,-500.0,0.00043835,120]
[407955977,1772926243700,-500.0,0.00043835,120]
[407955978,1772926243710,-1442.52092042,0.00043835,120]
[407955979,1772926243723,-500.0,0.00043835,120]
[407955980,1772926243734,-500.0,0.00043835,120]
[407955981,1772926243744,-500.0,0.00043835,120]
[407955982,1772926243754,-500.0,0.00043835,120]
[407955983,1772926243763,-500.0,0.00043835,120]
[407955984,1772926243773,-500.0,0.00043835,120]
[407955985,1772926243782,-500.0,0.00043835,120]
[407955986,1772926243792,-500.0,0.00043835,120]
[407955987,1772926243801,-500.0,0.00043835,120]
[407955988,1772926243810,-500.0,0.00043835,120]
[407955989,1772926243819,-500.0,0.00043835,120]
[407955990,1772926243828,-500.0,0.00043835,120]
[407955991,1772926243837,-500.0,0.00043835,120]
[407955992,1772926243847,-500.0,0.00043835,120]
[407955993,1772926243856,-500.0,0.00043835,120]
[407955994,1772926243866,-500.0,0.00043835,120]
[407955995,1772926243875,-500.0,0.00043835,120]
[407955996,1772926243884,-500.0,0.00043835,120]
[407955997,1772926243894,-500.0,0.00043835,120]
[407955998,1772926243904,-500.0,0.00043835,120]
[407955999,1772926243913,-500.0,0.00043835,120]
[407956000,1772926243922,-500.0,0.00043835,120]
[407956001,1772926243931,-500.0,0.00043835,120]
[407956002,1772926243940,-500.0,0.00043835,120]
[407956003,1772926243949,-500.0,0.00043835,120]
[407956004,1772926243958,-500.0,0.00043835,120]
[407956005,1772926243966,-500.0,0.00043835,120]
[407956006,1772926243975,-500.0,0.00043835,120]
[407956007,1772926243985,-500.0,0.00043835,120]
[407956008,1772926243994,-500.0,0.00043835,120]
[407956009,1772926244003,-500.0,0.00043835,120]
[407956010,1772926244013,-500.0,0.00043835,120]
[407956011,1772926244022,-500.0,0.00043835,120]
[407956012,1772926244031,-500.0,0.00043835,120]
[407956013,1772926244040,-500.0,0.00043835,120]
[407956014,1772926244049,-500.0,0.00043835,120]
[407956015,1772926244058,-500.0,0.00043835,120]
[407956016,1772926244067,-500.0,0.00043835,120]
[407956017,1772926244076,-500.0,0.00043835,120]
[407956018,1772926244085,-500.0,0.00043835,120]
[407956019,1772926244094,-500.0,0.00043835,120]
[407956020,1772926244106,-500.0,0.00043835,120]
[407956021,1772926244116,-500.0,0.00043835,120]
[407956022,1772926244125,-500.0,0.00043835,120]
[407956023,1772926244134,-500.0,0.00043835,120]
[407956024,1772926244143,-500.0,0.00043835,120]
[407956025,1772926244152,-500.0,0.00043835,120]
[407956026,1772926244161,-500.0,0.00043835,120]
[407956027,1772926244170,-500.0,0.00043835,120]
[407956028,1772926244179,-500.0,0.00043835,120]
[407956029,1772926244189,-500.0,0.00043835,120]
[407956030,1772926244198,-500.0,0.00043835,120]
[407956031,1772926244207,-500.0,0.00043835,120]
[407956032,1772926244217,-500.0,0.00043835,120]
[407956033,1772926244227,-500.0,0.00043835,120]
[407956034,1772926244238,-500.0,0.00043835,120]
[407956035,1772926244248,-500.0,0.00043835,120]